bitfinex-derivatives/quotes_SOLF0:USTF0_20260227
["timestamp","ask_amount","ask_price","bid_price","bid_amount"]
[1772174830094,10.3069,87.318,87.28,3.36231781]
[1772174832096,14.31593603,87.318,87.28,3.36231781]
[1772174832400,4.00903603,87.311,87.27,3.36231781]
[1772174832994,10.3078,87.31,87.27,3.36231781]
[1772174833794,4.00903603,87.311,87.28,3.36231781]
[1772174833991,14.31302971,87.318,87.28,3.36231781]
[1772174835494,14.31302971,87.318,87.206,28.36978397]
[1772174835495,10.3057,87.328,87.29,3.36231781]
[1772174837298,10.3057,87.328,87.3,3.36231781]
[1772174837797,4.00908398,87.33,87.3,3.36231781]
[1772174840704,4.00908398,87.33,87.29,3.36231781]
[1772174843597,10.3053,87.331,87.3,3.36231781]
[1772174845004,14.30652144,87.339,87.3,3.36231781]
[1772174845203,4.00222144,87.338,87.3,3.36231781]
[1772174845400,10.3043,87.339,87.31,3.36231781]
[1772174846003,10.3034,87.347,87.31,3.36231781]
[1772174846405,4.00224349,87.358,87.32,3.36231781]
[1772174846606,10.3025,87.355,87.32,3.36231781]
[1772174846908,3.98532515,87.354,87.32,3.36231781]
[1772174847915,14.28804799,87.353,87.32,3.36231781]
[1772174848211,3.98534799,87.352,87.31,3.36231781]
[1772174848602,3.97567194,87.339,87.29,3.36231781]
[1772174848803,3.97567194,87.339,87.28,3.36231781]
[1772174850011,3.97569497,87.33,87.281,10.3111]
[1772174850714,3.99713238,87.326,87.281,10.3111]
[1772174852812,3.99713238,87.326,87.29,3.36231781]
[1772174854410,10.3048,87.335,87.29,3.36231781]
[1772174854611,3.99457266,87.339,87.3,3.36231781]
[1772174859416,3.99457266,87.339,87.31,3.36231781]
[1772174859907,3.99457266,87.339,87.255,34.4]
[1772174859908,3.99457266,87.339,87.3,3.36231781]
[1772174861015,3.99457266,87.339,87.301,10.3088]
[1772174862017,3.99060389,87.352,87.31,3.36231781]
[1772174862517,10.3015,87.363,87.32,3.36231781]
[1772174862716,3.99041705,87.363,87.32,3.36231781]
[1772174863219,3.99041705,87.363,87.33,3.35316433]
[1772174863417,19.54304467,87.364,87.33,3.35316433]
[1772174863719,3.9904353,87.377,87.33,3.35316433]
[1772174864110,3.9904353,87.369,87.289,21.35639571]
[1772174864418,3.9904353,87.36,87.31,3.35316433]
[1772174865019,3.9904353,87.36,87.32,3.35316433]
[1772174865420,3.98427327,87.349,87.303,10.3084]
[1772174866419,3.98427327,87.349,87.311,10.3076]
[1772174866613,4.00237188,87.361,87.32,3.35316433]
[1772174867919,4.00237188,87.361,87.322,10.3063]
[1772174868315,3.98891114,87.369,87.32,3.35316433]
[1772174869224,3.98891114,87.369,87.31,3.35316433]
[1772174869416,3.98891114,87.369,87.32,3.35316433]
[1772174869616,3.98891114,87.369,87.33,3.35316433]
[1772174870121,3.98891114,87.369,87.283,34.4]
[1772174870327,3.98891114,87.369,87.32,3.35316433]
[1772174870923,3.98891114,87.369,87.322,10.3062]
[1772174871627,3.98891114,87.369,87.331,10.3052]
[1772174873526,3.99558549,87.38,87.339,10.3042]
[1772174874024,3.99558549,87.38,87.33,13.65856433]
[1772174874224,3.99558549,87.379,87.33,10.3054]
[1772174874430,3.99558549,87.369,87.33,10.3054]
[1772174875230,3.99558549,87.369,87.33,13.65856433]
[1772174875629,3.35316433,87.39,87.34,3.35316433]
[1772174875828,4.00502496,87.389,87.34,3.35316433]
[1772174876926,4.00502496,87.389,87.344,10.3037]
[1772174879727,4.02348299,87.388,87.34,3.35316433]
[1772174880028,4.02348299,87.388,87.334,10.3048]
[1772174880934,279.9453898,87.412,87.36,3.35316433]
[1772174881133,4.02183991,87.414,87.37,3.35316433]
[1772174881633,4.02183991,87.414,87.38,3.35316433]
[1772174881938,4.02185318,87.429,87.38,3.35316433]
[1772174882133,3.35316433,87.44,87.39,3.35316433]
[1772174882333,4.02185318,87.442,87.4,3.35316433]
[1772174882634,4.03390499,87.456,87.4,3.35316433]
[1772174883338,3.35316433,87.44,87.39,3.35316433]
[1772174883536,4.03391737,87.439,87.39,3.35316433]
[1772174883929,4.03391737,87.451,87.401,10.2969]
[1772174885034,4.08772387,87.449,87.391,10.2982]
[1772174886447,7.43924167,87.44,87.391,10.2982]
[1772174887247,7.43924167,87.44,87.4,10.2971]
[1772174887546,4.08607734,87.44,87.4,10.2971]
[1772174887840,4.08607734,87.44,87.391,10.2982]
[1772174888047,4.08608672,87.439,87.391,10.2982]
[1772174888246,4.08608672,87.439,87.39,3.35316433]
[1772174888646,4.08608672,87.439,87.38,3.35316433]
[1772174889948,4.08608672,87.439,87.386,10.2987]
[1772174890448,4.08608672,87.439,87.336,34.4]
[1772174890449,4.08608672,87.439,87.395,10.2977]
[1772174891649,4.08608672,87.439,87.403,10.2967]
[1772174892951,4.08608672,87.439,87.393,10.2979]
[1772174893351,4.08608672,87.439,87.39,3.35316433]
[1772174893651,4.08608672,87.439,87.401,10.2969]
[1772174894150,3.35316433,87.45,87.401,10.2969]
[1772174894651,3.35316433,87.46,87.411,10.2958]
[1772174895047,7.3910323,87.46,87.411,10.2958]
[1772174895254,4.03786797,87.459,87.411,10.2958]
[1772174896752,25.42332222,87.468,87.42,3.35316433]
[1772174897247,29.46050873,87.468,87.42,3.35316433]
[1772174897954,29.46050873,87.468,87.426,10.2941]
[1772174898555,25.42332222,87.468,87.434,10.2931]
[1772174898754,7.06382222,87.468,87.43,3.35316433]
[1772174899653,2.222e-05,87.468,87.451,10.2911]
[1772174900248,2.222e-05,87.468,87.45,3.35316433]
[1772174901358,2.222e-05,87.468,87.402,20.5938]
[1772174901359,2.222e-05,87.468,87.43,3.35316433]
[1772174901558,2.222e-05,87.468,87.42,3.35316433]
[1772174902563,4.00121801,87.468,87.431,10.2934]
[1772174902963,4.00121801,87.468,87.377,20.5996]
[1772174902964,3.35316433,87.45,87.377,20.5996]
[1772174903261,4.00119579,87.459,87.41,3.35316433]
[1772174903657,4.00120677,87.449,87.39,3.35316433]
[1772174904064,4.00120677,87.439,87.39,3.35316433]
[1772174904256,4.00120677,87.439,87.353,20.6054]
[1772174904257,4.00120677,87.429,87.38,3.35316433]
[1772174904453,4.00120677,87.429,87.353,20.6054]
[1772174904659,3.97817482,87.419,87.37,3.35316433]
[1772174904860,3.35316433,87.43,87.393,10.2979]
[1772174906355,4.05805891,87.429,87.382,10.2992]
[1772174906555,2.222e-05,87.468,87.36,3.35316433]
[1772174906556,4.05805891,87.419,87.36,3.35316433]
[1772174906754,4.05805891,87.419,87.37,3.35316433]
[1772174907966,4.05805891,87.419,87.381,10.2992]
[1772174908360,4.05805891,87.419,87.36,3.35316433]
[1772174909965,4.05805891,87.419,87.371,10.3005]
[1772174910367,3.35316433,87.43,87.37,3.35316433]
[1772174910569,7.47674712,87.43,87.37,3.35316433]
[1772174910773,4.12358279,87.429,87.38,10.2994]
[1772174911665,4.12358279,87.429,87.38,13.65256433]
[1772174912266,4.12358279,87.429,87.38,3.35316433]
[1772174912570,4.12358852,87.443,87.4,3.35316433]
[1772174913067,4.12358852,87.443,87.401,10.297]
[1772174913270,4.13753311,87.459,87.41,3.35316433]
[1772174914164,4.13753311,87.459,87.401,10.297]
[1772174914375,4.13753822,87.449,87.401,10.297]
[1772174921080,4.13753822,87.449,87.41,3.35316433]
[1772174922379,4.13753822,87.449,87.356,20.6045]
[1772174922380,4.13753822,87.449,87.392,10.298]
[1772174922578,4.13753822,87.449,87.39,3.35316433]
[1772174923676,4.13753822,87.449,87.4,3.35316433]
[1772174923977,4.11075759,87.447,87.4,13.65026433]
[1772174925482,2.222e-05,87.468,87.42,3.34784969]
[1772174926889,4.1122795,87.465,87.42,3.34784969]
[1772174928780,4.1122795,87.465,87.421,10.2946]
[1772174930687,4.11225284,87.462,87.42,3.34784969]
[1772174930893,4.11225284,87.459,87.412,10.2956]
[1772174931387,10.2903,87.458,87.403,10.2967]
[1772174931593,4.11225758,87.449,87.39,3.34784969]
[1772174931790,2.222e-05,87.468,87.39,3.34784969]
[1772174931791,4.11225758,87.439,87.39,3.34784969]
[1772174932996,4.11225758,87.439,87.395,10.2977]
[1772174941899,3.93371618,87.438,87.395,10.2977]
[1772174942099,3.93371618,87.429,87.387,10.2986]
[1772174942504,3.92102391,87.441,87.39,3.34784969]
[1772174944102,3.92102391,87.441,87.401,10.2969]
[1772174944402,3.34784969,87.44,87.401,10.2969]
[1772174944601,3.91005538,87.439,87.401,10.2969]
[1772174945104,2.222e-05,87.468,87.391,10.2981]
[1772174945105,3.91005538,87.429,87.391,10.2981]
[1772174949395,3.91005538,87.429,87.382,10.2992]
[1772174949800,2.222e-05,87.468,87.351,20.6058]
[1772174949801,3.92388144,87.453,87.4,3.34784969]
[1772174950500,3.93974198,87.45,87.401,10.2969]
[1772174950700,3.93974198,87.45,87.4,3.34784969]
[1772174950906,3.93974198,87.45,87.41,3.34784969]
[1772174951908,3.93974198,87.45,87.411,10.2957]
[1772174952107,3.93974939,87.466,87.41,3.34784969]
[1772174952407,2.222e-05,87.468,87.42,3.34784969]
[1772174952408,3.93974939,87.465,87.42,3.34784969]
[1772174953909,3.93974939,87.465,87.422,10.2944]
[1772174954205,3.93974939,87.465,87.41,3.34784969]
[1772174954406,3.89249713,87.459,87.41,3.34784969]
[1772174954606,10.2906,87.456,87.411,10.2958]
[1772174954802,3.88567602,87.455,87.411,10.2958]
[1772174956110,3.88567602,87.455,87.403,10.2967]
[1772174956503,3.89477293,87.439,87.39,3.34784969]
[1772174957313,3.89477293,87.439,87.395,10.2977]
[1772174959118,3.89477293,87.439,87.387,10.2986]
[1772174959315,3.89477293,87.439,87.39,3.34784969]
[1772174959919,3.90505103,87.437,87.38,3.34784969]
[1772174960914,3.90477211,87.433,87.38,3.34784969]
[1772174961920,3.90477938,87.431,87.38,3.34784969]
[1772174962220,3.90477938,87.431,87.382,10.2992]
[1772174962719,3.90477938,87.431,87.39,3.34784969]
[1772174964113,3.90527595,87.45,87.41,3.34784969]
[1772174964314,14.14516055,87.477,87.344,28.36978397]
[1772174964315,3.90527595,87.478,87.44,3.34784969]
[1772174964516,3.93594265,87.492,87.41,21.35639571]
[1772174964715,3.93594265,87.491,87.45,3.34784969]
[1772174965616,3.93594903,87.487,87.411,21.35639571]
[1772174965813,3.93594903,87.469,87.39,21.35639571]
[1772174966014,3.93594903,87.467,87.42,3.34784969]
[1772174967021,3.93594903,87.467,87.42,13.64254969]
[1772174967613,3.93568234,87.465,87.42,3.34784969]
[1772174967816,3.93568234,87.465,87.411,10.2958]
[1772174968020,3.93568234,87.459,87.41,3.34784969]
[1772174968323,3.93568234,87.449,87.391,10.2981]
[1772174969322,3.95541281,87.442,87.391,10.2981]
[1772174970223,7.30326825,87.44,87.391,10.2981]
[1772174970620,3.95275599,87.439,87.391,10.2981]
[1772174971122,10.2927,87.438,87.391,10.2981]
[1772174971823,3.34784969,87.45,87.399,10.2972]
[1772174972024,3.95276165,87.453,87.4,3.34784969]
[1772174972224,3.95276165,87.453,87.41,3.34784969]
[1772174974133,3.95730733,87.467,87.42,3.34784969]
[1772174974924,3.95730733,87.467,87.421,10.2946]
[1772174975732,3.95730733,87.467,87.43,3.34784969]
[1772174976335,3.95730733,87.467,87.412,10.2957]
[1772174976539,8.4989464,87.495,87.411,3.80925107]
[1772174976832,181.17624261,87.533,87.384,28.36978397]
[1772174976833,3.34784969,87.44,87.385,3.80925107]
[1772174977033,3.34784969,87.42,87.371,3.80925107]
[1772174977939,10.2939,87.428,87.38,3.34784969]
[1772174978430,3.74492086,87.427,87.38,3.34784969]
[1772174980126,3.34784969,87.43,87.38,3.34784969]
[1772174980127,3.56205533,87.423,87.38,3.34784969]
[1772174980533,3.56205533,87.419,87.371,3.80925107]
[1772174980740,3.56205533,87.419,87.38,3.34784969]
[1772174981240,3.56205533,87.419,87.371,3.80925107]
[1772174981441,3.56205533,87.419,87.38,3.34784969]
[1772174981941,3.56205533,87.434,87.4,3.34784969]
[1772174982437,10.2913,87.45,87.4,3.34784969]
[1772174983433,3.56205533,87.449,87.4,3.34784969]
[1772174983834,3.56205533,87.449,87.346,34.4]
[1772174983835,3.56205533,87.409,87.359,3.69662855]
[1772174984041,3.56205533,87.409,87.37,3.34784969]
[1772174984941,3.56205533,87.409,87.359,3.69662855]
[1772174985143,3.56205533,87.409,87.36,3.34784969]
[1772174985443,3.56205533,87.409,87.308,34.4]
[1772174985444,3.56205533,87.407,87.347,10.3033]
[1772174985639,3.56205533,87.407,87.35,3.34784969]
[1772174985839,3.56205533,87.407,87.36,3.34784969]
[1772174987035,10.2969,87.402,87.36,3.34784969]
[1772174987235,3.56205533,87.407,87.36,3.35146452]
[1772174989043,3.56205533,87.407,87.352,10.3027]
[1772174989643,3.56205533,87.399,87.342,10.3039]
[1772174990542,3.56205533,87.399,87.35,3.35146452]
[1772174990846,3.56205533,87.396,87.35,3.35146452]
[1772174991243,3.56205533,87.396,87.36,3.35146452]
[1772174997047,3.56205533,87.396,87.35,3.35146452]
[1772174997641,3.35146452,87.39,87.34,3.35146452]
[1772174997840,3.56205533,87.392,87.351,3.69662855]
[1772174998043,3.56205533,87.409,87.351,3.69662855]
[1772174998240,3.56205533,87.403,87.351,3.69662855]
[1772174999250,3.56205533,87.403,87.353,10.3026]
[1772174999939,3.56205533,87.401,87.353,10.3026]
[1772175000249,3.35146452,87.4,87.353,10.3026]
[1772175000445,3.56205533,87.389,87.336,3.69662855]
[1772175000648,3.56205533,87.369,87.321,3.69662855]
[1772175000844,3.56205533,87.369,87.31,3.35146452]
[1772175001350,3.56205533,87.369,87.314,10.3072]
[1772175002246,3.35146452,87.38,87.33,3.35146452]
[1772175002651,3.56205533,87.379,87.33,3.35146452]
[1772175002851,3.56205533,87.379,87.331,10.3052]
[1772175003447,3.56205533,87.379,87.34,3.35146452]
[1772175005246,3.56205533,87.379,87.335,10.3047]
[1772175005247,13.86185533,87.378,87.332,3.69662855]
[1772175005444,3.56205533,87.369,87.32,3.35146452]
[1772175005948,3.56205533,87.349,87.3,3.35146452]
[1772175006549,3.56205533,87.347,87.29,3.35146452]
[1772175006750,3.56205533,87.347,87.3,3.35146452]
[1772175007844,10.304,87.342,87.3,3.35146452]
[1772175008045,13.86605533,87.342,87.3,3.35146452]
[1772175009057,3.56205533,87.341,87.3,3.35146452]
[1772175009258,8.43179376,87.39,87.287,3.69662855]
[1772175009259,13.86635533,87.34,87.287,3.69662855]
[1772175009450,3.56205533,87.339,87.287,3.69662855]
[1772175011761,3.7782994,87.337,87.287,3.69662855]
[1772175013449,10.305,87.334,87.287,3.69662855]
[1772175013852,3.7782994,87.333,87.287,3.69662855]
[1772175014557,3.7782994,87.331,87.287,3.69662855]
[1772175015053,3.7782994,87.331,87.275,10.3118]
[1772175015253,3.7782994,87.331,87.275,14.10637693]
[1772175015457,3.7782994,87.326,87.275,3.79457693]
[1772175016050,3.7782994,87.315,87.258,3.79457693]
[1772175017357,3.7782994,87.315,87.26,3.79457693]
[1772175018960,3.7782994,87.315,87.268,3.79457693]
[1772175020065,3.7782994,87.315,87.272,3.79457693]
[1772175021560,10.3073,87.314,87.272,3.79457693]
[1772175021862,3.7782994,87.313,87.258,3.79457693]
[1772175022261,3.7782994,87.305,87.258,3.79457693]
[1772175023155,3.7782994,87.301,87.248,10.315]
[1772175024863,10.3094,87.296,87.248,10.315]
[1772175025264,3.7782994,87.319,87.257,3.79457693]
[1772175027065,3.7782994,87.319,87.275,10.3118]
[1772175027468,3.7782994,87.319,87.271,3.79457693]
[1772175028264,3.7782994,87.319,87.272,10.3122]
[1772175029266,3.7782994,87.319,87.28,3.357542]
[1772175029766,3.357542,87.34,87.291,3.79457693]
[1772175029964,3.7782994,87.349,87.31,3.357542]
[1772175031675,10.3018,87.361,87.32,3.357542]
[1772175031875,3.7782994,87.364,87.32,3.357542]
[1772175032068,3.7782994,87.364,87.33,3.357542]
[1772175033274,3.7782994,87.364,87.321,3.79457693]
[1772175034277,3.7782994,87.378,87.323,3.79457693]
[1772175035477,10.3,87.376,87.327,3.79457693]
[1772175037377,3.7782994,87.372,87.313,3.79457693]
[1772175038877,3.7782994,87.371,87.314,14.10187693]
[1772175039070,3.7782994,87.371,87.315,3.79457693]
[1772175039876,3.74317082,87.368,87.315,3.79457693]
[1772175041080,10.3011,87.367,87.315,3.79457693]
[1772175042479,14.04427082,87.367,87.315,3.79457693]
[1772175042679,3.74317082,87.362,87.315,3.79457693]
[1772175049278,3.74317082,87.362,87.321,10.3064]
[1772175049477,3.74317082,87.362,87.322,3.94501537]
[1772175049688,3.74317082,87.375,87.322,3.94501537]
[1772175049989,3.74317082,87.39,87.324,3.94501537]
[1772175050778,14.04187082,87.387,87.339,3.94501537]
[1772175051781,3.74317082,87.384,87.339,3.94501537]
[1772175052883,3.74317082,87.382,87.339,3.94501537]
[1772175053389,3.74317082,87.382,87.34,3.35262609]
[1772175053889,3.74317082,87.379,87.34,3.35262609]
[1772175054087,3.74317082,87.379,87.316,3.94501537]
[1772175054288,3.74317082,87.379,87.33,3.35262609]
[1772175055990,3.74317082,87.379,87.33,13.65802609]
[1772175056191,3.74317082,87.375,87.33,3.35262609]
[1772175056593,3.74317082,87.375,87.32,3.35262609]
[1772175056785,3.74317082,87.36,87.31,3.35262609]
[1772175057681,3.74317082,87.349,87.3,3.35262609]
[1772175058881,14.04687082,87.344,87.3,3.35262609]
[1772175059083,3.74317082,87.343,87.3,3.35262609]
[1772175060394,3.74317082,87.343,87.302,10.3086]
[1772175061289,3.74317082,87.359,87.32,3.35262609]
[1772175063489,3.74317082,87.359,87.311,3.94501537]
[1772175063890,10.3017,87.362,87.311,3.94501537]
[1772175063891,3.74317082,87.357,87.311,3.94501537]
[1772175064403,3.74317082,87.357,87.31,3.35262609]
[1772175065590,14.04657082,87.347,87.301,10.3087]
[1772175066497,3.74317082,87.346,87.3,3.35262609]
[1772175067786,3.74317082,87.346,87.301,3.94501537]
[1772175070200,3.74317082,87.346,87.31,7.31319023]
[1772175070399,3.88900613,87.371,87.321,3.97966329]
[1772175070704,3.88900613,87.371,87.33,7.33228938]
[1772175071104,10.3007,87.37,87.33,7.33228938]
[1772175074301,10.2997,87.378,87.331,3.99554876]
[1772175075001,3.88900613,87.377,87.331,3.99554876]
[1772175075904,3.88900613,87.375,87.331,3.99554876]
[1772175076605,10.3006,87.371,87.331,3.99554876]
[1772175077905,14.18960613,87.371,87.331,3.99554876]
[1772175078902,3.88900613,87.37,87.331,3.99554876]
[1772175079103,3.88900613,87.366,87.321,4.01860185]
[1772175079500,3.88900613,87.366,87.322,4.01867776]
[1772175079703,3.88900613,87.39,87.341,4.01867776]
[1772175079901,3.88900613,87.39,87.35,3.35262609]
[1772175080609,3.88900613,87.389,87.35,3.35262609]
[1772175080805,3.88900613,87.389,87.317,21.35639571]
[1772175081111,3.88900613,87.379,87.33,3.35262609]
[1772175081813,3.88900613,87.379,87.341,4.07287207]
[1772175087014,3.88900613,87.377,87.331,4.07245161]
[1772175087215,3.88900613,87.369,87.325,10.3059]
[1772175087608,3.88900613,87.369,87.328,4.07252518]
[1772175087802,3.88900613,87.369,87.331,4.0740769]
[1772175091207,3.88900613,87.369,87.321,4.09624025]
[1772175092615,3.88900613,87.369,87.323,14.40244025]
[1772175092816,3.88900613,87.369,87.324,4.09624025]
[1772175093606,3.88900613,87.359,87.31,4.09624025]
[1772175093817,3.88900613,87.359,87.311,4.09624025]
[1772175094008,3.88900613,87.349,87.3,7.44886634]
[1772175094206,3.88900613,87.349,87.301,4.09624025]
[1772175095107,10.3034,87.347,87.301,4.09624025]
[1772175096817,3.88900613,87.344,87.291,21.35639571]
[1772175097018,160.1722,87.404,87.29,3.35262609]
[1772175097019,3.88900613,87.339,87.29,3.35262609]
[1772175097416,3.88900613,87.339,87.29,7.32611064]
[1772175098017,3.88900613,87.338,87.29,7.32611064]
[1772175098319,3.88900613,87.338,87.294,3.96731485]
[1772175100413,3.85520776,87.353,87.301,3.79692948]
[1772175100612,7.20783385,87.36,87.311,3.79692948]
[1772175100813,3.85520776,87.359,87.311,3.79692948]
[1772175101921,3.85520776,87.358,87.311,3.79692948]
[1772175103022,3.85520776,87.355,87.32,3.35262609]
[1772175105818,3.85520776,87.355,87.314,3.80254535]
[1772175107226,3.85520776,87.352,87.295,3.51187385]
[1772175107427,3.35262609,87.34,87.295,3.51187385]
[1772175107630,3.35262609,87.35,87.295,3.51187385]
[1772175107821,10.3003,87.373,87.33,3.35262609]
[1772175108020,10.3003,87.373,87.331,3.50675175]
[1772175108425,10.3013,87.365,87.331,3.50675175]
[1772175109329,10.3022,87.358,87.319,3.26019024]
[1772175109523,3.85520776,87.357,87.31,3.35336366]
[1772175109923,14.15760776,87.356,87.31,6.60869882]
[1772175110221,3.85520776,87.356,87.31,3.25533516]
[1772175110827,3.85520776,87.356,87.31,6.60869882]
[1772175111026,10.3032,87.349,87.31,6.60869882]
[1772175112626,3.85520776,87.349,87.32,3.35336366]
[1772175112825,10.3021,87.358,87.32,3.35336366]
[1772175113323,3.85520776,87.362,87.321,2.83701022]
[1772175113529,3.85520776,87.362,87.33,3.35336366]
[1772175116034,10.3018,87.361,87.321,2.83701022]
[1772175116231,3.85520776,87.36,87.31,3.35336366]
[1772175116731,3.85520776,87.359,87.301,2.83095589]
[1772175118133,10.3035,87.347,87.301,2.83095589]
[1772175118533,3.85520776,87.346,87.301,2.83095589]
[1772175118733,10.3038,87.344,87.301,2.83095589]
[1772175120233,3.85520776,87.346,87.301,2.83095589]
[1772175121235,10.3037,87.344,87.301,2.83095589]
[1772175121635,10.3037,87.344,87.255,28.36978397]
[1772175121636,3.85520776,87.343,87.29,3.35336366]
[1772175123137,3.85520776,87.334,87.29,3.35336366]
[1772175123833,3.85520776,87.334,87.291,2.82533267]
[1772175124136,3.85520776,87.334,87.3,3.35336366]
[1772175124638,3.85520776,87.334,87.28,3.35336366]
[1772175124839,3.85520776,87.329,87.28,3.35336366]
[1772175125034,3.85520776,87.325,87.279,2.82031313]
[1772175125336,3.85520776,87.319,87.279,2.82031313]
[1772175125838,3.85520776,87.319,87.27,3.35336366]
[1772175126036,3.85520776,87.315,87.27,3.35336366]
[1772175128044,3.85520776,87.313,87.27,3.35336366]
[1772175128436,3.85520776,87.327,87.29,6.21473383]
[1772175128641,14.15930776,87.341,87.3,3.35336366]
[1772175128843,3.85520776,87.341,87.31,3.35336366]
[1772175129238,3.85520776,87.341,87.3,6.21069135]
[1772175131544,3.85520776,87.341,87.31,3.35336366]
[1772175132037,3.85520776,87.341,87.3,6.21069135]
[1772175132841,10.3027,87.354,87.31,3.35336366]
[1772175133242,14.13351512,87.354,87.31,3.35336366]
[1772175133543,3.83081512,87.351,87.31,3.35336366]
[1772175136245,14.13391512,87.35,87.31,3.35336366]
[1772175136443,3.83081512,87.349,87.31,3.35336366]
[1772175137547,3.83081512,87.347,87.31,3.35336366]
[1772175137746,3.83081512,87.347,87.301,2.85708498]
[1772175138843,10.3037,87.345,87.301,2.85708498]
[1772175139048,14.13451512,87.345,87.301,2.85708498]
[1772175139855,3.83081512,87.344,87.301,2.85708498]
[1772175141456,3.83081512,87.341,87.301,2.85708498]
[1772175145055,10.3033,87.349,87.301,2.85708498]
[1772175145260,3.83081512,87.35,87.311,2.72948623]
[1772175145755,3.83081512,87.362,87.321,2.72976212]
[1772175146260,3.83081512,87.358,87.31,3.35336366]
[1772175147960,3.83081512,87.353,87.31,3.35336366]
[1772175149456,3.83081512,87.353,87.312,2.71741417]
[1772175149658,3.83081512,87.365,87.33,3.35336366]
[1772175150959,3.83081512,87.364,87.31,3.35336366]
[1772175151965,3.83081512,87.355,87.31,3.35336366]
[1772175153053,10.3013,87.365,87.321,2.7421135]
[1772175153763,14.13211512,87.365,87.321,2.7421135]
[1772175153962,14.13241512,87.363,87.321,2.7421135]
[1772175154156,3.83081512,87.362,87.321,2.7421135]
[1772175155866,10.3017,87.361,87.321,2.7421135]
[1772175157963,3.83081512,87.36,87.321,2.7421135]
[1772175163879,3.7396102,87.358,87.301,2.71277615]
[1772175164972,3.7396102,87.348,87.303,2.77174662]
[1772175166666,3.7396102,87.348,87.305,2.76182088]
[1772175167380,3.7396102,87.348,87.31,3.35336366]
[1772175168177,3.7396102,87.348,87.307,10.308]
[1772175168675,3.7396102,87.348,87.305,2.76182088]
[1772175169974,3.7396102,87.345,87.305,2.76182088]
[1772175170781,3.7396102,87.359,87.311,2.62425454]
[1772175171877,3.7396102,87.359,87.313,10.3073]
[1772175175283,3.7396102,87.359,87.313,12.92314139]
[1772175175771,3.7396102,87.359,87.314,2.61604116]
[1772175175972,3.7396102,87.359,87.321,2.61377247]
[1772175177379,3.7396102,87.357,87.308,2.60665156]
[1772175177580,3.7396102,87.349,87.308,2.60665156]
[1772175181182,3.7396102,87.349,87.311,2.59879066]
[1772175183385,3.7396102,87.349,87.314,2.61339506]
[1772175185380,14.0428102,87.349,87.314,2.61339506]
[1772175185576,3.7396102,87.348,87.295,2.57419417]
[1772175185781,3.7396102,87.348,87.296,2.57419417]
[1772175186986,3.7396102,87.343,87.299,10.309]
[1772175190390,3.62659849,87.341,87.296,2.57419417]
[1772175190688,3.62659849,87.339,87.296,2.57419417]
[1772175191982,3.62659849,87.338,87.296,2.57419417]
[1772175198893,3.62659849,87.336,87.296,2.57419417]
[1772175202195,10.305,87.334,87.296,2.57419417]
[1772175202595,3.62659849,87.333,87.296,2.57419417]
[1772175206688,3.62659849,87.323,87.276,2.65219085]
[1772175206896,3.62659849,87.309,87.265,2.65062391]
[1772175207898,3.62659849,87.309,87.268,2.64919254]
[1772175213104,10.67742703,87.355,87.031,142.37887327]
[1772175213105,3.35545056,87.29,87.255,2.66080209]
[1772175213303,3.62659849,87.3,87.255,2.66080209]
[1772175213503,3.62659849,87.312,87.267,2.66090835]
[1772175214508,3.62659849,87.299,87.248,2.65946314]
[1772175214906,3.62659849,87.299,87.251,2.64590695]
[1772175215108,3.62659849,87.299,87.26,3.35545056]
[1772175216113,3.62659849,87.299,87.251,2.64590695]
[1772175216308,3.62659849,87.289,87.251,2.64590695]
[1772175219317,3.62659849,87.289,87.242,10.3157]
[1772175220306,3.62659849,87.289,87.244,13.0157521]
[1772175221012,10.3105,87.287,87.233,10.3167]
[1772175221206,3.79434818,87.269,87.212,2.68804658]
[1772175222216,3.79434818,87.269,87.22,3.35545056]
[1772175222516,3.79434818,87.269,87.22,6.04229767]
[1772175222911,3.79434818,87.269,87.223,10.318]
[1772175223617,3.79434818,87.269,87.231,2.56140331]
[1772175223917,3.79434818,87.279,87.231,2.56140331]
[1772175225019,3.79434818,87.279,87.232,10.3169]
[1772175225311,8.5257898,87.331,87.182,34.36]
[1772175225312,3.79434818,87.289,87.241,2.48528501]
[1772175227016,3.79434818,87.289,87.243,2.42664528]
[1772175228619,3.79434818,87.289,87.251,2.42556548]
[1772175229519,3.79434818,87.302,87.261,2.39976453]
[1772175232415,3.79434818,87.302,87.27,3.35922295]
[1772175233123,3.79434818,87.322,87.28,3.35922295]
[1772175233523,3.79434818,87.322,87.281,2.42007384]
[1772175234119,3.79434818,87.322,87.29,3.35922295]
[1772175234623,3.79434818,87.322,87.282,2.4190664]
[1772175236124,3.79434818,87.322,87.28,3.35922295]
[1772175238825,3.79434818,87.322,87.29,3.35922295]
[1772175239724,3.79434818,87.363,87.311,2.45313887]
[1772175239925,3.79434818,87.363,87.33,3.35922295]
[1772175240228,3.79434818,87.363,87.32,3.35922295]
[1772175240423,3.79434818,87.363,87.33,3.35922295]
[1772175241222,3.79434818,87.363,87.32,3.35922295]